bitfinex/quotes_BTCUSD_20250529
["timestamp","ask_amount","ask_price","bid_price","bid_amount"]
[1748525310037,0.49011151,108310.0,108300.0,1.18686517]
[1748525310240,0.48148451,108310.0,108300.0,1.18686517]
[1748525310444,0.49011115,108310.0,108300.0,1.18686517]
[1748525311130,0.49011316,108310.0,108300.0,1.18686517]
[1748525311613,0.49011273,108310.0,108300.0,1.18686517]
[1748525312065,0.49011417,108310.0,108300.0,1.18686517]
[1748525312305,0.49011494,108310.0,108300.0,1.18686517]
[1748525312579,0.4901146,108310.0,108300.0,1.18686517]
[1748525313349,0.4901146,108310.0,108300.0,1.13686517]
[1748525313596,0.4901173,108310.0,108300.0,1.13686517]
[1748525313848,0.4901172,108310.0,108300.0,1.13686517]
[1748525314082,0.48148451,108310.0,108300.0,0.84276517]
[1748525314768,0.48148451,108310.0,108300.0,0.89276517]
[1748525315678,0.48148451,108310.0,108300.0,0.79558517]
[1748525316321,0.48148451,108310.0,108300.0,0.70138517]
[1748525316522,0.48148451,108310.0,108300.0,0.74562517]
[1748525317813,0.48148451,108310.0,108300.0,0.65138517]
[1748525318021,0.48148451,108310.0,108300.0,0.79562517]
[1748525322210,0.82148451,108310.0,108300.0,0.79562517]
[1748525323047,0.52568451,108310.0,108300.0,0.79562517]
[1748525323264,0.82136451,108310.0,108300.0,0.79562517]
[1748525324328,0.48136451,108310.0,108300.0,0.79562517]
[1748525337085,0.18568451,108310.0,108300.0,0.79562517]
[1748525337305,0.48132451,108310.0,108300.0,0.79562517]
[1748525348738,0.48132451,108310.0,108300.0,0.79554517]
[1748525349489,0.48132451,108310.0,108300.0,0.65138517]
[1748525349737,0.54292451,108310.0,108300.0,0.54623122]
[1748525349959,0.55397471,108310.0,108300.0,0.64039122]
[1748525351174,0.49237471,108310.0,108300.0,0.64039122]
[1748525351387,0.48132451,108310.0,108300.0,0.67239122]
[1748525351605,0.48132451,108310.0,108300.0,0.64039122]
[1748525355775,0.18568451,108310.0,108300.0,0.64039122]
[1748525355976,0.48128451,108310.0,108300.0,0.27237122]
[1748525356389,0.48128451,108310.0,108300.0,0.30447122]
[1748525360274,0.18568451,108310.0,108300.0,0.85576367]
[1748525360623,0.48124451,108310.0,108300.0,0.87030452]
[1748525361031,0.48124451,108310.0,108300.0,0.41006602]
[1748525363711,0.18568451,108310.0,108300.0,0.87030452]
[1748525363927,0.48124451,108310.0,108300.0,0.87030452]
[1748525364129,0.48124451,108310.0,108300.0,0.41006602]
[1748525370596,0.48124451,108310.0,108300.0,0.39854517]
[1748525370803,0.48124451,108310.0,108300.0,0.59548517]
[1748525374450,0.48124451,108310.0,108300.0,0.29751122]
[1748525374676,0.54434451,108310.0,108300.0,0.39163122]
[1748525377268,0.54434451,108310.0,108300.0,0.44163122]
[1748525378015,0.51244451,108310.0,108300.0,0.44163122]
[1748525378435,0.48124451,108310.0,108300.0,0.44163122]
[1748525379301,0.49970433,108310.0,108300.0,0.44163122]
[1748525381560,0.20414433,108310.0,108300.0,0.44163122]
[1748525381751,0.49966433,108310.0,108300.0,0.44163122]
[1748525386803,0.56226433,108310.0,108300.0,0.39159122]
[1748525387425,0.49966433,108310.0,108300.0,0.39159122]
[1748525391135,0.49966433,108310.0,108300.0,0.44159122]
[1748525391541,0.49966433,108310.0,108300.0,0.39159122]
[1748525394825,0.49966433,108310.0,108300.0,0.42399122]
[1748525396323,0.49966433,108310.0,108300.0,0.45559122]
[1748525398330,0.51069363,108310.0,108300.0,0.45559122]
[1748525398993,0.49966433,108310.0,108300.0,0.45559122]
[1748525399515,0.51069363,108310.0,108300.0,0.42399122]
[1748525399749,0.57319363,108310.0,108300.0,0.39159122]
[1748525399969,0.57319363,108310.0,108300.0,0.29908]
[1748525400188,0.51069363,108310.0,108300.0,0.29908]
[1748525400409,0.18568451,108310.0,108300.0,0.32938]
[1748525400646,0.1967213,108310.0,108300.0,0.97672353]
[1748525400871,0.1967213,108310.0,108300.0,0.60888602]
[1748525400872,0.48116451,108310.0,108300.0,0.60888602]
[1748525401749,0.18568451,108310.0,108300.0,0.60888602]
[1748525401982,0.48112451,108310.0,108300.0,0.60888602]
[1748525402851,0.48112451,108310.0,108300.0,0.62617434]
[1748525403074,0.18568451,108310.0,108300.0,0.60888602]
[1748525403337,0.001,108310.0,108300.0,1.11512925]
[1748525403561,0.32413715,108310.0,108300.0,1.12512925]
[1748525403791,0.5087923,108310.0,108300.0,1.12512925]
[1748525404007,0.5087923,108310.0,108300.0,1.14241453]
[1748525404228,0.31490457,108310.0,108300.0,1.14241453]
[1748525404438,0.02869707,108310.0,108300.0,1.15869978]
[1748525404704,0.001,108310.0,108300.0,1.21006741]
[1748525404941,0.02969639,108310.0,108300.0,1.21406741]
[1748525405184,0.34360105,108310.0,108300.0,1.21406741]
[1748525405417,0.03792855,108310.0,108300.0,1.57136091]
[1748525405670,0.33336855,108310.0,108300.0,1.55406741]
[1748525405967,0.01846116,108330.0,108320.0,0.22602085]
[1748525406200,0.50780447,108330.0,108320.0,1.22897803]
[1748525406419,0.48934297,108330.0,108320.0,1.22897803]
[1748525407117,0.48011209,108330.0,108320.0,0.80408572]
[1748525407362,0.18471209,108330.0,108320.0,0.64746487]
[1748525407596,0.55412106,108330.0,108320.0,0.6354862]
[1748525407821,0.48011209,108330.0,108320.0,0.74064487]
[1748525408508,0.48011209,108330.0,108320.0,0.8079397]
[1748525408722,0.48011209,108330.0,108320.0,0.79064487]
[1748525409138,0.48874388,108330.0,108320.0,0.79064487]
[1748525409347,0.48011209,108330.0,108320.0,0.79064487]
[1748525409769,0.48874389,108330.0,108320.0,0.80793857]
[1748525409975,0.48874388,108330.0,108320.0,0.80793867]
[1748525410197,0.19334387,108330.0,108320.0,1.2315427]
[1748525410418,0.48870422,108330.0,108320.0,1.23154162]
[1748525410634,0.48007209,108330.0,108320.0,1.21424895]
[1748525410853,0.48870418,108330.0,108320.0,1.21424895]
[1748525411119,0.48007209,108330.0,108320.0,1.21424895]
[1748525411549,0.48870571,108330.0,108320.0,1.23154146]
[1748525411769,0.48007209,108330.0,108320.0,0.79064487]
[1748525411991,0.48007209,108330.0,108320.0,0.75793894]
[1748525412206,0.48007209,108330.0,108320.0,0.49311092]
[1748525412449,0.48007209,108330.0,108320.0,0.4958]
[1748525413308,0.82007209,108330.0,108320.0,0.4958]
[1748525413747,0.88267209,108330.0,108320.0,0.4958]
[1748525413961,0.88267209,108330.0,108320.0,0.40176]
[1748525414637,0.88267209,108330.0,108320.0,0.39876]
[1748525414850,0.88367209,108330.0,108320.0,0.44804]
[1748525415078,0.88367209,108330.0,108320.0,0.45004]
[1748525415306,0.34,108320.0,108300.0,0.21728528]
[1748525415528,0.92949401,108310.0,108300.0,0.21728528]
[1748525415740,0.94048755,108310.0,108300.0,0.21728528]
[1748525415953,0.9551456,108310.0,108300.0,0.24826493]
[1748525416169,0.9828636,108310.0,108300.0,0.24826493]
[1748525416388,1.00497006,108310.0,108300.0,0.24826493]
[1748525416596,1.04515638,108310.0,108300.0,0.24826493]
[1748525417263,6.13417006,108310.0,108300.0,0.24826493]
[1748525417511,6.19775234,108310.0,108300.0,0.21728528]
[1748525417751,6.60625319,108310.0,108300.0,0.21728528]
[1748525417986,5.70405758,108290.0,108280.0,5.11947305]
[1748525418219,6.10280971,108290.0,108280.0,5.11947305]
[1748525418664,6.13053571,108290.0,108280.0,5.11947305]
[1748525419333,6.14917011,108290.0,108280.0,5.11947305]
[1748525419539,6.19036733,108290.0,108280.0,5.12047305]
[1748525419753,6.19036733,108290.0,108280.0,3.85837305]
[1748525419754,6.15400818,108290.0,108280.0,3.85837305]
[1748525419975,6.16647298,108290.0,108280.0,3.45847305]
[1748525420415,6.18654625,108290.0,108280.0,3.45847305]
[1748525421061,6.20554625,108290.0,108280.0,3.45947305]
[1748525421321,6.18154625,108290.0,108280.0,3.42542756]
[1748525421550,6.18154625,108290.0,108280.0,3.39648498]
[1748525421551,6.16254625,108290.0,108280.0,3.39648498]
[1748525421771,6.18954625,108290.0,108280.0,3.39009647]
[1748525421997,6.16254625,108290.0,108280.0,3.35865386]
[1748525422221,6.27592663,108290.0,108280.0,3.35865386]
[1748525422442,6.27592663,108290.0,108280.0,3.35226535]
[1748525422443,6.23954625,108290.0,108280.0,3.35226535]
[1748525422916,6.23954625,108290.0,108280.0,3.34487684]
[1748525423388,6.53954625,108290.0,108280.0,3.30516357]
[1748525423605,6.49908384,108290.0,108280.0,3.30516357]
[1748525423894,6.29786536,108290.0,108280.0,2.61998178]
[1748525424090,5.94789263,108290.0,108280.0,1.57274937]
[1748525424334,5.87407814,108290.0,108280.0,1.57274937]
[1748525424549,5.87407814,108290.0,108280.0,1.56536086]
[1748525424550,7.04703133,108290.0,108280.0,1.56536086]
[1748525424763,7.08508321,108290.0,108280.0,1.56536086]
[1748525424991,7.05808321,108290.0,108280.0,1.55797235]
[1748525425255,6.81208321,108290.0,108280.0,1.50586263]
[1748525425494,6.81208321,108290.0,108280.0,1.49747412]
[1748525425495,6.87978321,108290.0,108280.0,1.49747412]
[1748525425726,6.79751002,108290.0,108280.0,1.49008561]
[1748525425992,6.90669444,108290.0,108280.0,1.823674]
[1748525426208,6.90669444,108290.0,108280.0,1.33126236]
[1748525426209,6.88859275,108290.0,108280.0,1.33126236]
[1748525426441,6.45899387,108290.0,108280.0,1.00818518]
[1748525426665,6.80300671,108290.0,108280.0,0.39479667]
[1748525426891,6.81828229,108290.0,108280.0,0.39479667]
[1748525427101,6.81862249,108290.0,108280.0,0.2540834]
[1748525427333,6.83548075,108290.0,108280.0,0.2540834]
[1748525427549,6.8189527,108290.0,108280.0,0.24669489]
[1748525427793,6.8189527,108290.0,108280.0,0.23930638]
[1748525427996,6.94910225,108290.0,108280.0,0.23930638]
[1748525428206,6.94910225,108290.0,108280.0,0.23191352]
[1748525428417,6.88612445,108290.0,108280.0,0.23191352]
[1748525428632,6.88612445,108290.0,108280.0,0.22452066]
[1748525428851,6.88612445,108290.0,108270.0,4.76913026]
[1748525428852,0.95653533,108280.0,108270.0,4.76913026]
[1748525429102,6.00707162,108280.0,108270.0,4.68724922]
[1748525429323,6.13029607,108280.0,108270.0,4.65128919]
[1748525429538,6.13029607,108280.0,108270.0,4.64389633]
[1748525429758,6.13029607,108280.0,108270.0,4.63650347]
[1748525430188,6.13029607,108280.0,108270.0,4.60977051]
[1748525430704,6.15729607,108280.0,108270.0,4.60237765]
[1748525430955,6.15729607,108280.0,108270.0,4.59498479]
[1748525431201,6.15729607,108280.0,108270.0,4.54269152]
[1748525431202,6.55137607,108280.0,108270.0,4.54269152]
[1748525431454,6.55137607,108280.0,108270.0,4.5022542]
[1748525431455,6.57837607,108280.0,108270.0,4.5022542]
[1748525431719,6.51544129,108280.0,108270.0,4.45345273]
[1748525431954,6.57819407,108280.0,108270.0,4.41371608]
[1748525432184,6.57819407,108280.0,108270.0,4.40632322]
[1748525432615,6.57819407,108280.0,108270.0,4.36658657]
[1748525432817,6.57819407,108280.0,108270.0,4.34645039]
[1748525432818,6.51544129,108280.0,108270.0,4.34645039]
[1748525433048,6.57817696,108280.0,108270.0,4.33905753]
[1748525433283,6.57817696,108280.0,108270.0,4.30671374]
[1748525433504,1.78696895,108270.0,108260.0,3.15041236]
[1748525433726,1.9280229,108270.0,108260.0,1.22770611]
[1748525433950,0.94481813,108260.0,108250.0,6e-05]
[1748525434217,1.87987948,108260.0,108250.0,0.76178634]
[1748525434448,1.99348887,108260.0,108250.0,0.72943932]
[1748525434677,2.02123787,108260.0,108250.0,0.72204572]
[1748525435117,2.02123787,108260.0,108250.0,0.66053724]
[1748525435337,2.03161111,108260.0,108250.0,0.55280898]
[1748525435555,2.07293098,108260.0,108250.0,0.55280898]
[1748525435770,2.07774192,108260.0,108250.0,0.49138994]
[1748525435995,1.47802192,108260.0,108250.0,0.49138994]
[1748525436219,1.83873083,108260.0,108250.0,0.48399634]
[1748525436447,1.87533457,108260.0,108250.0,0.45164932]
[1748525436660,1.87533457,108260.0,108250.0,0.44425572]
[1748525437157,1.87533457,108260.0,108250.0,0.4045151]
[1748525437404,1.87533457,108260.0,108250.0,0.3971215]
[1748525437641,1.87533457,108260.0,108250.0,0.36477448]
[1748525437879,1.87533457,108260.0,108250.0,0.35448274]
[1748525438115,1.87533457,108260.0,108250.0,0.35162735]
[1748525438370,1.93077457,108260.0,108250.0,0.34423375]
[1748525438625,1.89393083,108260.0,108250.0,0.31188673]
[1748525438881,1.89393083,108260.0,108250.0,0.30449313]
[1748525438882,1.53889083,108260.0,108250.0,0.30449313]
[1748525439114,1.13808998,108260.0,108250.0,0.27663376]
[1748525439326,1.75224853,108260.0,108250.0,0.27663376]
[1748525439551,1.38780998,108260.0,108250.0,0.23689314]
[1748525439783,1.7601707,108260.0,108250.0,0.23689314]
[1748525440008,1.7601707,108260.0,108250.0,0.22949954]
[1748525440450,1.77895457,108260.0,108250.0,0.18975918]
[1748525440667,1.8862034,108260.0,108250.0,0.18236563]
[1748525440906,5.4597673,108250.0,108240.0,4.65256106]
[1748525441131,5.5653621,108250.0,108240.0,4.64516751]
[1748525441350,5.6208021,108250.0,108240.0,4.64516751]
[1748525441571,5.63958597,108250.0,108240.0,4.63777396]
[1748525441801,5.6708021,108250.0,108240.0,4.63777396]
[1748525442028,5.95587152,108250.0,108240.0,4.63777396]
[1748525442256,6.2507289,108250.0,108240.0,4.63777396]
[1748525442480,6.2507289,108250.0,108240.0,4.63826562]
[1748525442712,6.1952889,108250.0,108240.0,4.63826562]
[1748525442952,5.8956089,108250.0,108240.0,4.63826562]
[1748525443173,5.7830523,108250.0,108240.0,4.63826562]
[1748525443447,5.8100523,108250.0,108240.0,4.63826562]
[1748525443664,5.19591145,108250.0,108240.0,4.63826562]
[1748525443885,5.49539145,108250.0,108240.0,4.63826562]
[1748525444101,5.83539145,108250.0,108240.0,4.63826562]
[1748525444333,5.52231145,108250.0,108240.0,4.63826562]
[1748525444794,5.8768523,108250.0,108240.0,4.63826562]
[1748525445230,5.8498523,108250.0,108240.0,4.63826562]
[1748525445457,6.1328523,108250.0,108240.0,4.63826562]
[1748525445683,6.1796055,108250.0,108240.0,4.63826562]
[1748525445902,6.22724207,108250.0,108240.0,4.63826562]
[1748525446343,6.19838937,108250.0,108240.0,4.56161954]
[1748525446560,6.2287621,108250.0,108240.0,4.56161954]
[1748525446789,6.24754597,108250.0,108240.0,4.56161954]
[1748525447224,6.2576148,108250.0,108240.0,4.56161954]
[1748525447466,5.61892075,108250.0,108240.0,4.56361954]
[1748525447685,5.86695145,108250.0,108240.0,4.59671954]
[1748525447913,5.8814923,108250.0,108240.0,4.56361954]
[1748525448134,5.8815723,108250.0,108240.0,4.56361954]
[1748525448360,5.8815323,108250.0,108240.0,4.56361954]
[1748525448583,5.8814523,108250.0,108240.0,4.56361954]
[1748525448785,6.1814523,108250.0,108240.0,4.56361954]
[1748525449011,6.1814523,108250.0,108240.0,4.59381954]
[1748525449233,5.8824523,108250.0,108240.0,4.62681954]
[1748525449439,6.23789,108250.0,108240.0,4.62681954]
[1748525450360,5.25750915,108250.0,108240.0,4.62681954]
[1748525450615,5.80061645,108250.0,108240.0,4.62681954]
[1748525450865,6.16761645,108250.0,108240.0,4.62781954]
[1748525451084,6.19461645,108250.0,108240.0,4.62781954]
[1748525451500,5.52365645,108250.0,108240.0,4.62681954]
[1748525451719,5.49665645,108250.0,108240.0,4.62681954]
[1748525451931,5.79537645,108250.0,108240.0,4.62681954]
[1748525452143,6.16237645,108250.0,108240.0,4.62781954]
[1748525452369,5.19591145,108250.0,108240.0,4.62781954]
[1748525452576,5.79451145,108250.0,108240.0,4.62781954]
[1748525452991,5.52291145,108250.0,108240.0,4.62881954]
[1748525453194,6.16159145,108250.0,108240.0,4.62881954]
[1748525453353,6.16155145,108250.0,108240.0,4.62881954]
[1748525454291,5.56291145,108250.0,108240.0,5.02805954]
[1748525454504,0.29861145,108250.0,108240.0,5.02805954]
[1748525454733,0.0207,108250.0,108240.0,5.02905954]
[1748525454947,0.1535575,108250.0,108240.0,5.02905954]
[1748525455183,0.1202575,108250.0,108240.0,5.17157076]
[1748525455408,0.0557575,108250.0,108240.0,5.25966556]
[1748525455620,0.4835175,108250.0,108240.0,5.21296556]
[1748525455849,0.1847575,108250.0,108240.0,5.21296556]
[1748525456080,0.4833975,108250.0,108240.0,5.22296556]
[1748525456738,0.4833975,108250.0,108240.0,5.22196556]
[1748525456954,0.4913975,108250.0,108240.0,5.22196556]
[1748525457163,0.4873975,108250.0,108240.0,5.22196556]
[1748525457370,0.1887575,108250.0,108240.0,5.22196556]
[1748525457581,0.1847575,108250.0,108240.0,5.22996556]
[1748525457796,0.4830775,108250.0,108240.0,5.23796556]
[1748525458417,0.4829575,108250.0,108240.0,5.23796556]
[1748525459055,0.4828775,108250.0,108240.0,5.23796556]
[1748525459273,0.4828775,108250.0,108240.0,5.33404556]
[1748525459691,0.4827975,108250.0,108240.0,5.23796556]
[1748525459917,0.4827975,108250.0,108240.0,5.33400556]
[1748525460339,0.4827975,108250.0,108240.0,5.23796556]
[1748525460551,0.4827975,108250.0,108240.0,5.33400556]
[1748525460777,0.1847575,108250.0,108240.0,4.67313076]
[1748525461006,0.89656647,108250.0,108240.0,4.67665954]
[1748525461216,5.88072042,108250.0,108240.0,4.67665954]
[1748525461647,5.91242042,108250.0,108240.0,4.66865954]
[1748525461861,5.91242042,108250.0,108240.0,4.57261954]
[1748525462083,5.94332042,108250.0,108240.0,4.58761954]
[1748525462558,6.24332042,108250.0,108240.0,4.58761954]
[1748525462789,6.28199265,108250.0,108240.0,4.58761954]
[1748525463002,6.28198397,108250.0,108240.0,4.58761954]
[1748525463429,6.28198397,108250.0,108240.0,4.57961954]
[1748525463879,5.98418397,108250.0,108240.0,4.57961954]
[1748525464095,6.28190397,108250.0,108240.0,4.58661954]
[1748525464325,5.910175,108250.0,108240.0,4.65713076]
[1748525464565,0.91769145,108250.0,108240.0,4.65913076]
[1748525464780,5.887816,108250.0,108240.0,4.66365954]
[1748525465006,5.87689145,108250.0,108240.0,4.66365954]
[1748525465247,5.883816,108250.0,108240.0,4.56561954]
[1748525465469,6.183816,108250.0,108240.0,4.66065954]
[1748525465694,6.17289145,108250.0,108240.0,4.75717076]
[1748525466122,6.17289145,108250.0,108240.0,4.66465954]
[1748525466335,5.87501145,108250.0,108240.0,4.66465954]
[1748525466560,6.17309145,108250.0,108240.0,4.66465954]
[1748525466782,6.17309145,108250.0,108240.0,4.66865954]
[1748525466998,6.17309145,108250.0,108240.0,4.66465954]
[1748525467219,6.17309145,108250.0,108240.0,4.66065954]
[1748525467461,6.17709145,108250.0,108240.0,4.66065954]
[1748525467667,6.18109145,108250.0,108240.0,4.66065954]
[1748525469028,6.19566925,108250.0,108240.0,4.66065954]
[1748525469657,5.89758925,108250.0,108240.0,4.66065954]
[1748525469868,6.19534925,108250.0,108240.0,4.75317076]
[1748525470081,6.19534925,108250.0,108240.0,4.65713076]
[1748525470082,5.89758925,108250.0,108240.0,4.65713076]
[1748525470304,5.89758925,108250.0,108240.0,4.75317076]
[1748525470513,5.81459145,108250.0,108240.0,4.75317076]
[1748525470730,5.81459145,108250.0,108240.0,4.56461954]
[1748525470946,5.82916925,108250.0,108240.0,4.66065954]
[1748525471161,5.85976925,108250.0,108240.0,4.66065954]
[1748525471373,5.87071315,108250.0,108240.0,4.66065954]
[1748525471588,5.88165288,108250.0,108240.0,4.66065954]
[1748525471960,5.55337288,108250.0,108240.0,4.75317076]
[1748525472411,5.85101288,108250.0,108240.0,4.75317076]
[1748525472833,5.55337288,108250.0,108240.0,4.75317076]
[1748525473060,0.32027288,108250.0,108240.0,4.75317076]
[1748525473329,0.21827503,108250.0,108240.0,4.75317076]
[1748525473567,0.35905118,108250.0,108240.0,4.56461954]
[1748525473847,5.90073508,108250.0,108240.0,4.66065954]
[1748525474079,5.89636898,108250.0,108240.0,4.66065954]
[1748525474300,5.89636898,108250.0,108240.0,4.57561954]
[1748525474509,5.89636898,108250.0,108240.0,4.66665954]
[1748525474727,5.89636898,108250.0,108240.0,4.66065954]
[1748525474954,5.90036898,108250.0,108240.0,4.56461954]
[1748525475224,5.90036898,108250.0,108240.0,4.66065954]
[1748525475225,5.90436898,108250.0,108240.0,4.66065954]
[1748525475659,5.88979118,108250.0,108240.0,4.66065954]
[1748525476115,5.88979118,108250.0,108240.0,4.56461954]
[1748525476340,5.88979118,108250.0,108240.0,4.65981954]
[1748525476769,5.88979118,108250.0,108240.0,4.56461954]
[1748525476982,5.88979118,108250.0,108240.0,4.65981954]
[1748525477196,5.88979118,108250.0,108240.0,4.75233076]
[1748525477197,5.88955118,108250.0,108240.0,4.75233076]
[1748525477401,5.60678094,108250.0,108240.0,4.75233076]
[1748525477624,5.90418929,108250.0,108240.0,4.75233076]
[1748525478467,5.60678929,108250.0,108240.0,4.65981954]
[1748525478678,5.90406929,108250.0,108240.0,4.65981954]
[1748525479565,5.88943118,108250.0,108240.0,4.65981954]
[1748525480051,5.91716818,108250.0,108240.0,4.56461954]
[1748525480284,5.91716818,108250.0,108240.0,4.65981954]
[1748525480766,5.91716818,108250.0,108240.0,4.56461954]
[1748525481015,5.91716818,108250.0,108240.0,4.65981954]
[1748525481242,5.91716818,108250.0,108240.0,4.56461954]
[1748525481761,6.23652609,108250.0,108240.0,4.56461954]
[1748525482000,5.93652609,108250.0,108240.0,4.53677136]
[1748525482237,5.96567916,108250.0,108240.0,4.53677136]
[1748525482796,5.95109831,108250.0,108240.0,4.57833686]
[1748525483479,5.65385831,108250.0,108240.0,4.53677136]
[1748525483944,5.95105831,108250.0,108240.0,4.53677136]
[1748525484181,5.65385831,108250.0,108240.0,4.53677136]
[1748525484424,5.62470524,108250.0,108240.0,4.53377136]
[1748525484660,5.92178524,108250.0,108240.0,4.53377136]
[1748525484922,5.63924609,108250.0,108240.0,4.53377136]
[1748525485168,5.9963706,108250.0,108240.0,4.46927136]
[1748525485415,6.00912733,108250.0,108240.0,4.46927136]
[1748525485643,6.03945478,108250.0,108240.0,4.46927136]
[1748525485873,5.9941594,108250.0,108240.0,4.43599846]
[1748525486314,5.9941594,108250.0,108240.0,4.43699846]
[1748525486540,6.0021594,108250.0,108240.0,4.43799846]
[1748525486760,6.2816428,108250.0,108240.0,4.43599846]
[1748525487000,6.30693016,108250.0,108240.0,4.43799846]
[1748525487213,6.35635709,108250.0,108240.0,4.43999846]
[1748525487427,6.38873572,108250.0,108240.0,4.43999846]
[1748525487643,6.35237937,108250.0,108240.0,4.43799846]
[1748525487890,6.35637937,108250.0,108240.0,4.43999846]
[1748525488346,6.05873937,108250.0,108240.0,4.43999846]
[1748525488563,5.71936102,108250.0,108240.0,4.43999846]
[1748525488779,6.02293409,108250.0,108240.0,4.43999846]
[1748525489020,6.02483244,108250.0,108240.0,4.43999846]
[1748525489260,6.35662257,108250.0,108240.0,4.43999846]
[1748525489480,6.35902597,108250.0,108240.0,4.38454256]
[1748525489702,6.40023636,108250.0,108240.0,4.38454256]
[1748525491521,6.43689138,108250.0,108240.0,4.38454256]
[1748525491960,6.13937138,108250.0,108240.0,4.38454256]
[1748525492192,6.43689138,108250.0,108240.0,4.38454256]
[1748525493933,6.38689138,108250.0,108240.0,4.38454256]
[1748525494184,6.35023636,108250.0,108240.0,4.38454256]
[1748525495074,6.42899597,108250.0,108240.0,4.38454256]
[1748525495306,6.47923597,108250.0,108240.0,4.38454256]
[1748525496197,6.47923597,108250.0,108240.0,4.35049446]
[1748525496428,6.11923597,108250.0,108240.0,4.28117617]
[1748525496899,6.11923597,108250.0,108240.0,4.25331543]
[1748525497391,6.11523597,108250.0,108240.0,4.24931543]
[1748525497629,6.10223597,108250.0,108240.0,4.24931543]
[1748525497880,6.10223597,108250.0,108240.0,4.25331543]
[1748525497881,6.12823597,108250.0,108240.0,4.25331543]
[1748525499379,5.93965936,108250.0,108240.0,4.138885]
[1748525499602,5.97631438,108250.0,108240.0,4.138885]
[1748525500536,6.05804198,108250.0,108240.0,4.138885]
[1748525501019,6.05804198,108250.0,108240.0,4.13380703]
[1748525501480,6.05804198,108250.0,108240.0,4.10895793]
[1748525501757,5.73749887,108250.0,108240.0,3.82654884]
[1748525502007,1.73448468,108240.0,108230.0,4.57976358]
[1748525502253,2.31395838,108240.0,108230.0,4.57353911]
[1748525502499,2.40359889,108240.0,108230.0,4.57353911]
[1748525502729,2.40359889,108240.0,108230.0,4.28646565]
[1748525503180,2.42359889,108240.0,108230.0,4.28646565]
[1748525503409,2.41324916,108240.0,108230.0,4.26910204]
[1748525503656,2.41324916,108240.0,108230.0,4.2617069]
[1748525503876,2.41324916,108240.0,108230.0,4.25942152]
[1748525503877,2.41203303,108240.0,108230.0,4.25942152]
[1748525504109,2.51179264,108240.0,108230.0,4.19655438]
[1748525504357,2.51171695,108240.0,108230.0,4.19655438]
[1748525504583,2.47317988,108240.0,108230.0,4.18915924]
[1748525504809,2.17317988,108240.0,108230.0,4.18915924]
[1748525505026,2.17317988,108240.0,108230.0,4.1817641]
[1748525505259,2.09446387,108240.0,108230.0,3.39620866]
[1748525505500,2.09462387,108240.0,108230.0,1.91036827]
[1748525505734,2.09462387,108240.0,108230.0,0.8015353]
[1748525505735,2.12699857,108240.0,108230.0,0.8015353]
[1748525505963,2.17301171,108240.0,108230.0,1e-08]
[1748525506445,2.12679857,108240.0,108230.0,1e-08]
[1748525506655,2.12671857,108240.0,108230.0,1e-08]
[1748525507636,2.13659857,108240.0,108230.0,1e-08]
[1748525508070,2.13178211,108240.0,108230.0,1e-08]
[1748525508522,2.08916783,108240.0,108230.0,1e-08]
[1748525508749,2.32317012,108240.0,108230.0,1e-08]
[1748525508955,2.32067012,108240.0,108230.0,1e-08]
[1748525509161,2.32063012,108240.0,108230.0,1e-08]
[1748525509378,1.96335012,108240.0,108230.0,1e-08]
[1748525509607,1.93265012,108240.0,108230.0,1e-08]
[1748525509819,2.22985012,108240.0,108230.0,1e-08]
[1748525510250,2.22981012,108240.0,108230.0,1e-08]
[1748525510463,2.23463274,108240.0,108230.0,1e-08]
[1748525510697,2.27981012,108240.0,108230.0,1e-08]
[1748525512244,2.22981012,108240.0,108230.0,1e-08]
[1748525512515,1.58700927,108240.0,108230.0,1e-08]
[1748525512768,1.88896927,108240.0,108230.0,1e-08]
[1748525513004,1.90351012,108240.0,108230.0,1e-08]
[1748525513447,2.26676332,108240.0,108230.0,1e-08]
[1748525513662,2.27976332,108240.0,108230.0,1e-08]
[1748525513899,2.25501012,108240.0,108230.0,1e-08]
[1748525514366,2.23301012,108240.0,108230.0,1e-08]
[1748525515705,2.23281012,108240.0,108230.0,1e-08]
[1748525515950,2.31112133,108240.0,108230.0,1e-08]
[1748525516157,5.92980703,108230.0,108220.0,4.53530328]
[1748525516430,6.57875995,108230.0,108220.0,4.53530328]
[1748525516843,6.60650995,108230.0,108220.0,4.53530328]
[1748525517278,6.6210508,108230.0,108220.0,4.53530328]
[1748525517503,6.6210508,108230.0,108220.0,4.53048682]
[1748525517504,6.23470529,108230.0,108220.0,4.53048682]
[1748525517718,6.25686189,108230.0,108220.0,4.53048682]
[1748525517930,6.22451655,108230.0,108220.0,4.53048682]
[1748525518585,6.23651655,108230.0,108220.0,4.53048682]
[1748525519736,6.20471655,108230.0,108220.0,4.53048682]
[1748525520162,6.23611655,108230.0,108220.0,4.53048682]
[1748525520844,6.23614169,108230.0,108220.0,4.53048682]
[1748525522534,6.53238169,108230.0,108220.0,4.53048682]
[1748525523425,6.89238169,108230.0,108220.0,4.53048682]
[1748525523665,6.89238169,108230.0,108220.0,4.51337181]
[1748525523666,6.99586177,108230.0,108220.0,4.51337181]
[1748525523899,7.15355817,108230.0,108220.0,4.50823186]
[1748525524132,7.15691163,108230.0,108220.0,4.44212254]
[1748525524357,7.12025661,108230.0,108220.0,4.39886953]
[1748525524586,7.18179513,108230.0,108220.0,4.15505329]
[1748525524803,7.08545287,108230.0,108220.0,4.13682096]
[1748525525019,7.10045287,108230.0,108220.0,4.12942566]
[1748525525246,7.11845287,108230.0,108220.0,4.0989077]
[1748525525471,7.10345287,108230.0,108220.0,4.08791946]
[1748525525700,7.10345287,108230.0,108220.0,4.08052416]
[1748525525906,7.18299139,108230.0,108220.0,4.08052416]
[1748525526131,7.18299139,108230.0,108220.0,4.01996934]
[1748525526357,7.273829,108230.0,108220.0,3.92078081]
[1748525526594,7.273829,108230.0,108220.0,3.85361342]
[1748525526595,7.255829,108230.0,108220.0,3.85361342]
[1748525526815,7.273829,108230.0,108220.0,3.8459219]
[1748525527031,7.273829,108230.0,108220.0,3.82239922]
[1748525527483,7.18298066,108230.0,108220.0,3.75530357]
[1748525527716,7.18298066,108230.0,108220.0,3.2455971]
[1748525527717,7.1359122,108230.0,108220.0,3.2455971]
[1748525527947,7.1359122,108230.0,108220.0,3.24215488]
[1748525528163,7.1359122,108230.0,108220.0,3.22530645]
[1748525528386,7.13591583,108230.0,108220.0,3.21208806]
[1748525528613,7.13591583,108230.0,108220.0,3.14906924]
[1748525528838,7.13591583,108230.0,108220.0,3.13184832]
[1748525529070,7.29463519,108230.0,108220.0,2.88426189]
[1748525529301,1.84339726,108230.0,108220.0,0.03333741]
[1748525529532,0.58859472,108220.0,108210.0,2.74639427]
[1748525529800,6.02242065,108220.0,108210.0,1.43657488]
[1748525530018,1.64887776,108210.0,108200.0,4.20217222]
[1748525530247,7.08647347,108210.0,108200.0,4.19477489]
[1748525530496,7.14716714,108210.0,108200.0,4.18737756]
[1748525530719,7.14716714,108210.0,108200.0,4.15501424]
[1748525530720,6.50429707,108210.0,108200.0,4.15501424]
[1748525530939,6.56385414,108210.0,108200.0,4.14761691]
[1748525531159,6.52253888,108210.0,108200.0,4.14761691]